bitfinex-derivatives/quotes_ETHF0:USTF0_20250116
["timestamp","ask_amount","ask_price","bid_price","bid_amount"]
[1737047360169,1.04855363,3339.1,3339.0,0.59907]
[1737047360774,0.59911,3338.9,3338.8,0.59907]
[1737047361074,0.44950363,3339.1,3339.0,0.59907]
[1737047361674,7.79913462,3339.2,3339.1,0.59905]
[1737047362372,4.66943462,3339.2,3339.1,0.59905]
[1737047362767,2.33393889,3339.2,3339.0,5.48274926]
[1737047362973,2.33393889,3339.2,3339.1,0.59905]
[1737047363976,2.33393889,3339.4,3339.0,5.48274926]
[1737047364184,2.33393889,3339.4,3339.3,0.59902]
[1737047366077,2.33393889,3339.4,3339.3,2.87396926]
[1737047366682,2.93293889,3339.4,3339.3,0.59902]
[1737047366881,2.33393889,3339.4,3339.3,0.59902]
[1737047367083,2.93293889,3339.4,3339.3,0.59902]
[1737047367887,0.599,3339.4,3339.3,0.59902]
[1737047368088,0.59905,3339.2,3339.1,0.59904]
[1737047368582,0.59905,3339.1,3339.0,1.86206]
[1737047368786,3.1777,3339.1,3339.0,1.86206]
[1737047368985,2.33408005,3339.2,3339.1,0.59905]
[1737047369181,2.33408005,3339.2,3339.1,2.87399926]
[1737047369388,2.33408005,3339.2,3339.1,4.47989926]
[1737047370492,3.98688005,3339.5,3339.4,0.599]
[1737047371088,4.58586005,3339.5,3339.4,0.599]
[1737047371290,3.98688005,3339.5,3339.4,0.599]
[1737047373596,1.6528,3339.5,3339.4,0.599]
[1737047374199,3.50090834,3339.6,3339.5,0.59898]
[1737047374691,4.66943462,3339.9,3339.4,5.48274926]
[1737047374692,3.95034197,3339.7,3339.4,5.48274926]
[1737047374986,3.95034197,3339.7,3339.6,2.87390926]
[1737047375187,1.5576,3340.0,3339.9,0.59891]
[1737047375382,0.59877,3340.7,3339.9,3.53694926]
[1737047375689,3.1482,3340.8,3340.4,0.59882]
[1737047375992,1.5576,3340.8,3340.7,3.80656]
[1737047376191,1.5576,3340.8,3340.7,45.86856]
[1737047377384,1.5576,3340.8,3340.7,48.79418652]
[1737047378393,2.00683154,3340.8,3340.7,48.79418652]
[1737047378991,0.44923154,3340.8,3340.7,48.79418652]
[1737047379795,1.04798154,3340.8,3340.7,45.86856]
[1737047379985,1.04798154,3340.8,3340.7,5.06856]
[1737047380496,1.04798154,3340.8,3340.7,5.06756]
[1737047380691,0.44923154,3340.8,3340.5,0.59879]
[1737047380889,0.59878,3340.6,3340.5,0.59879]
[1737047381099,3.1272,3340.7,3340.4,1.261]
[1737047381293,3.72598,3340.7,3340.6,0.59878]
[1737047382700,8.8475949,3340.7,3340.6,0.59878]
[1737047384199,4.17521154,3340.7,3340.6,0.59878]
[1737047385296,6.78423154,3340.7,3339.4,3.2078]
[1737047385604,0.59896,3339.7,3339.6,0.59894]
[1737047385899,0.59896,3339.7,3339.6,0.59893]
[1737047389800,5.578185,3339.8,3339.5,1.261]
[1737047390099,2.928825,3339.8,3339.7,0.59894]
[1737047390299,2.329885,3339.8,3339.7,3.52456652]
[1737047390605,3.49482751,3339.9,3339.8,0.59893]
[1737047390801,3.49482751,3339.9,3339.8,44.60673]
[1737047391802,1.5882,3340.6,3340.5,0.5988]
[1737047392200,1.5882,3340.6,3340.3,1.261]
[1737047392397,2.18699,3340.6,3340.5,0.5988]
[1737047392602,1.5882,3340.6,3340.5,0.5988]
[1737047392907,3.49482751,3340.9,3340.8,0.59875]
[1737047394005,0.59872,3341.0,3340.9,0.59873]
[1737047395410,5.18942751,3341.1,3340.5,6.13342652]
[1737047395708,5.18942751,3341.1,3340.9,0.59872]
[1737047395709,0.59874,3341.0,3340.9,0.59872]
[1737047395910,2.31714,3341.0,3340.9,0.59872]
[1737047396521,0.59877,3340.8,3340.7,0.59875]
[1737047398611,0.59878,3340.7,3340.6,0.59877]
[1737047399820,0.59876,3340.8,3340.7,0.59874]
[1737047400020,5.21322751,3341.0,3340.4,1.261]
[1737047400217,0.59878,3340.7,3340.6,0.59876]
[1737047401021,0.59876,3340.8,3340.7,0.59874]
[1737047402023,0.5988,3340.6,3340.5,0.59878]
[1737047402521,0.59878,3340.8,3340.7,0.59875]
[1737047402722,0.4492963,3340.8,3340.4,1.261]
[1737047402913,0.4492963,3340.8,3339.9,3.7701937]
[1737047403113,4.70476,3340.6,3340.0,1.26]
[1737047403321,2.72224,3340.8,3339.4,1.26]
[1737047403322,3.2078,3340.2,3339.4,1.26]
[1737047403621,0.59898,3339.6,3339.5,0.59896]
[1737047405323,1.0482763,3339.6,3339.5,0.59896]
[1737047407824,0.4492963,3339.6,3339.5,0.59896]
[1737047408015,0.4492963,3339.6,3339.5,3.80676]
[1737047408218,3.50075297,3339.6,3339.5,3.80678]
[1737047408826,3.33415349,3339.6,3339.5,3.80678]
[1737047409125,1.54638349,3339.6,3339.5,6.0797237]
[1737047409317,2.14534349,3339.6,3339.5,2.8719237]
[1737047409519,0.59898,3339.5,3339.4,42.65899]
[1737047409927,0.59907,3339.1,3339.0,1.85905]
[1737047410125,0.59903,3339.3,3339.2,0.59902]
[1737047410434,0.59905,3339.1,3339.0,1.85907]
[1737047410734,0.59909,3338.9,3338.5,2.2729437]
[1737047410916,0.59909,3338.9,3338.8,0.59909]
[1737047411319,0.59912,3338.8,3338.7,0.59911]
[1737047411724,0.5991,3338.9,3338.8,0.59909]
[1737047411924,3.2078,3339.1,3338.9,0.59907]
[1737047411925,0.59909,3339.0,3338.9,0.59907]
[1737047412520,3.2078,3339.1,3338.6,1.26]
[1737047412521,3.2078,3339.1,3339.0,0.59907]
[1737047413131,3.2078,3339.1,3338.8,2.2729437]
[1737047413434,0.5991,3338.9,3338.8,0.59909]
[1737047415826,3.2078,3339.1,3338.6,1.26]
[1737047416030,3.08211628,3339.7,3339.0,3.2078]
[1737047416329,3.08211628,3339.7,3339.6,2.8719037]
[1737047416535,0.203,3339.7,3339.6,44.9329037]
[1737047416729,7.01307176,3340.2,3340.1,0.59887]
[1737047416928,7.01307176,3340.2,3340.1,2.8718137]
[1737047417134,7.01307176,3340.2,3340.1,0.59887]
[1737047417329,7.01307176,3340.2,3340.0,41.39888]
[1737047417532,3.3819,3340.3,3340.1,0.59887]
[1737047418133,3.3819,3340.3,3340.2,0.59885]
[1737047418527,3.3819,3340.3,3339.8,40.8]
[1737047419033,3.3819,3340.3,3340.2,0.59885]
[1737047419235,3.3819,3340.3,3339.8,40.8]
[1737047419433,3.3819,3340.3,3340.2,0.59885]
[1737047421032,3.2078,3340.9,3340.8,0.59875]
[1737047421227,1.49655,3341.6,3340.8,0.59875]
[1737047421228,1.6722,3341.2,3341.1,0.59869]
[1737047421630,3.2078,3341.5,3341.4,0.59864]
[1737047421837,3.85929,3341.7,3341.5,0.59861]
[1737047422035,3.2607,3341.7,3341.6,0.5986]
[1737047422437,1.5885,3341.7,3341.6,0.5986]
[1737047423138,17.5326794,3341.8,3341.7,0.59859]
[1737047423434,1.6722,3342.2,3341.7,2.2729437]
[1737047423635,1.6722,3342.2,3341.5,3.2078]
[1737047423833,3.2078,3341.9,3341.2,1.261]
[1737047424032,0.5986,3341.6,3341.5,0.59861]
[1737047424230,3.2078,3341.9,3341.2,1.261]
[1737047424433,6.3384,3341.5,3341.2,1.261]
[1737047424645,0.59866,3341.3,3341.2,1.261]
[1737047424839,0.59866,3341.3,3341.2,1.85968]
[1737047425040,6.3384,3341.5,3341.2,1.261]
[1737047425338,0.59866,3341.3,3341.2,1.261]
[1737047427543,5.0,3341.3,3340.4,0.59882]
[1737047427741,0.59879,3340.6,3340.4,0.59881]
[1737047428136,0.59873,3340.9,3340.4,0.59881]
[1737047428345,5.4807437,3341.0,3340.3,0.59883]
[1737047428536,1.49683,3340.9,3340.2,1.26]
[1737047428741,0.59883,3340.4,3340.2,1.26]
[1737047429038,1.49683,3340.9,3340.2,1.85884]
[1737047429240,0.59883,3340.4,3340.2,1.85884]
[1737047429837,1.49683,3340.9,3340.2,1.26]
[1737047430033,0.59883,3340.4,3340.3,0.59883]
[1737047430446,0.59884,3340.4,3340.2,1.85885]
[1737047430743,0.59884,3340.4,3340.2,1.26]
[1737047430947,0.59884,3340.4,3340.3,0.59884]
[1737047431249,5.4807437,3341.0,3340.2,1.26]
[1737047431444,0.59881,3340.5,3340.3,0.59882]
[1737047431742,0.59875,3340.8,3340.7,0.59875]
[1737047432252,0.59874,3340.9,3340.7,0.59875]
[1737047432449,0.59873,3340.9,3340.7,0.59875]
[1737047433546,3.2078,3341.0,3340.7,0.59875]
[1737047433745,0.59877,3340.7,3340.6,0.59878]
[1737047433937,3.2078,3341.0,3340.3,40.8]
[1737047434142,0.59865,3341.4,3340.7,4.42396496]
[1737047434347,6.3384,3341.5,3341.0,2.92708496]
[1737047434543,0.59864,3341.4,3341.3,0.59865]
[1737047434943,6.3384,3341.5,3340.7,2.92708496]
[1737047435144,1.49661,3341.4,3340.6,3.2078]
[1737047435353,0.59876,3340.7,3340.6,3.80658]
[1737047436544,0.59876,3340.7,3340.6,3.2078]
[1737047437750,0.59876,3340.7,3340.6,3.80658]
[1737047438248,0.59876,3340.7,3340.6,3.2078]
[1737047438949,0.59876,3340.7,3340.6,3.80658]
[1737047439555,0.59876,3340.7,3340.6,0.59878]
[1737047440057,3.05392,3341.0,3340.2,4.4678]
[1737047440262,0.59883,3340.4,3340.2,4.4678]
[1737047440752,0.5988,3340.5,3340.2,4.4678]
[1737047440953,0.59881,3340.5,3340.2,5.06665]
[1737047441153,3.2078,3341.1,3340.4,2.92708496]
[1737047441349,0.59871,3341.0,3340.6,0.59878]
[1737047441548,3.2078,3341.1,3340.4,2.92708496]
[1737047441549,0.59878,3340.7,3340.4,2.92708496]
[1737047441856,3.2078,3341.1,3340.2,4.4678]
[1737047441857,0.59884,3340.3,3340.2,4.4678]
[1737047442357,0.59883,3340.4,3340.2,45.2678]
[1737047442753,0.59884,3340.3,3340.2,3.2078]
[1737047443056,3.18645,3340.7,3339.6,3.2078]
[1737047443057,3.2078,3340.5,3339.6,3.2078]
[1737047443254,0.59897,3339.6,3339.4,40.8]
[1737047443456,0.59895,3339.7,3339.4,42.06]
[1737047443757,0.59895,3339.7,3339.4,42.65899]
[1737047444457,0.59895,3339.7,3339.5,0.59897]
[1737047444954,0.59895,3339.7,3339.4,42.65899]
[1737047445554,3.2078,3340.1,3339.4,42.65899]
[1737047445555,0.59896,3339.6,3339.4,42.65899]
[1737047445754,3.2078,3340.1,3339.2,3.2078]
[1737047445755,0.59901,3339.3,3339.2,3.2078]
[1737047445951,1.6788,3339.5,3338.9,1.26]
[1737047446360,0.59904,3339.2,3338.9,1.85907]
[1737047446655,0.59906,3339.1,3338.9,1.85907]
[1737047446845,3.17629,3339.5,3338.9,1.85908]
[1737047447050,0.59907,3339.0,3338.9,1.26]
[1737047447243,0.59906,3339.1,3338.9,1.85908]
[1737047447651,1.6788,3339.5,3338.9,1.26]
[1737047447855,0.59907,3339.0,3338.9,1.26]
[1737047448258,1.6788,3339.5,3338.7,45.2678]
[1737047448459,0.5991,3338.8,3338.7,45.2678]
[1737047449146,0.5991,3338.8,3338.7,4.4678]
[1737047449559,0.5991,3338.8,3338.7,44.0078]
[1737047449953,3.21006,3339.1,3338.3,4.4678]
[1737047450153,0.59917,3338.5,3338.4,0.59918]
[1737047450666,0.59915,3338.6,3338.4,0.59918]
[1737047450851,0.59916,3338.5,3338.4,0.59918]
[1737047451148,0.59915,3338.6,3338.4,0.59916]
[1737047451358,1.6457,3339.0,3338.3,3.2078]
[1737047451551,0.59916,3338.5,3338.4,0.59917]
[1737047451752,0.59916,3338.5,3338.4,0.59918]
[1737047451954,0.59915,3338.6,3338.4,0.59918]
[1737047452158,1.6457,3339.0,3338.4,0.59918]
[1737047452159,0.59916,3338.5,3338.4,0.59918]
[1737047452361,0.59918,3338.4,3338.3,3.2078]
[1737047454162,0.59925,3338.0,3337.9,3.86638444]
[1737047454354,4.70572,3338.5,3337.9,3.86638444]
[1737047454555,3.2078,3338.5,3338.2,2.27648444]
[1737047454763,0.59919,3338.3,3338.2,2.87568444]
[1737047455456,0.59919,3338.3,3338.2,2.27648444]
[1737047455653,3.2078,3338.5,3337.6,2.27648444]
[1737047455958,0.5993,3337.7,3337.6,2.27648444]
[1737047456653,0.5993,3337.7,3337.6,2.87580444]
[1737047456858,1.5872,3338.1,3337.6,2.87580444]
[1737047457058,1.5872,3338.1,3337.6,2.27648444]
[1737047457262,2.18644,3338.1,3338.0,0.59925]
[1737047457560,1.5872,3338.1,3338.0,0.59925]
[1737047457864,0.59919,3338.4,3337.9,2.27648444]
[1737047458155,1.5872,3338.6,3338.2,5.48428444]
[1737047458463,0.59917,3338.5,3338.4,0.59916]
[1737047458759,0.59917,3338.5,3338.4,0.59917]
[1737047458954,0.59919,3338.4,3338.3,0.59919]
[1737047459158,1.5872,3338.6,3338.2,2.27648444]
[1737047459360,1.5872,3338.6,3337.8,3.2078]
[1737047459361,0.59921,3338.2,3338.1,0.59922]
[1737047459864,0.59924,3338.1,3338.0,0.59923]
[1737047460353,1.5872,3338.6,3338.0,0.59923]
[1737047460354,1.49795,3338.4,3338.0,0.59923]
[1737047460550,4.795,3338.6,3337.8,3.2078]
[1737047460759,0.59937,3337.3,3337.2,3.2078]
[1737047461356,0.59937,3337.3,3337.2,3.80719]
[1737047461965,0.59937,3337.3,3337.2,0.59939]
[1737047462156,1.5578,3337.6,3337.1,2.27648444]
[1737047462558,0.59937,3337.4,3337.3,0.59935]
[1737047464361,0.59935,3337.5,3337.4,0.59934]
[1737047464568,3.3383,3337.9,3337.4,2.27648444]
[1737047464756,0.59934,3337.6,3337.5,0.59932]
[1737047465064,2.27648444,3338.4,3337.5,0.59932]
[1737047465065,1.49793,3338.5,3337.5,1.49835]
[1737047465275,3.80703,3338.2,3338.1,2.87571444]
[1737047465562,1.6159,3338.3,3337.8,2.27648444]
[1737047465767,1.6159,3338.3,3337.8,3.2078]
[1737047466260,0.59927,3337.9,3337.8,0.59927]
[1737047466656,0.5993,3337.7,3337.6,1.26]
[1737047466864,1.6159,3338.3,3337.6,1.26]
[1737047467264,0.5993,3337.8,3337.7,0.59929]
[1737047467469,1.49804,3338.2,3337.6,1.26]
[1737047467665,0.59926,3338.0,3337.9,0.59925]
[1737047467966,0.59929,3337.8,3337.7,0.59928]
[1737047468167,0.59929,3337.8,3337.6,1.26]
[1737047468168,1.6159,3338.3,3337.6,1.26]
[1737047468461,0.59922,3338.2,3338.1,0.59922]
[1737047468861,1.6159,3338.3,3338.2,0.59921]
[1737047469268,3.2078,3338.6,3338.5,0.59916]
[1737047469565,0.59905,3339.2,3339.1,0.59904]
[1737047469771,1.6014,3339.4,3338.9,2.27648444]
[1737047469960,1.6014,3339.4,3338.9,0.59907]
[1737047469961,0.59907,3339.0,3338.9,0.59907]
[1737047470264,1.6014,3339.4,3338.6,2.27648444]
[1737047470467,0.59903,3339.3,3339.2,0.59902]
[1737047470668,0.59903,3339.3,3338.9,5.48428444]
[1737047470669,0.59906,3339.2,3339.1,0.59904]
[1737047471465,1.6014,3339.4,3339.2,0.59902]
[1737047471466,0.59902,3339.3,3339.2,0.59902]
[1737047471768,0.59904,3339.2,3339.1,0.59904]
[1737047472663,0.59902,3339.3,3339.2,0.59902]
[1737047472865,0.59902,3339.3,3339.0,3.2078]
[1737047472866,2.2004,3339.4,3339.3,0.59901]
[1737047473268,0.59902,3339.3,3339.2,0.59902]
[1737047473465,0.59904,3339.2,3339.1,0.59904]
[1737047473666,0.59904,3339.2,3339.0,3.2078]
[1737047473667,0.59905,3339.1,3339.0,3.2078]
[1737047474068,3.2078,3339.1,3338.3,3.53648444]
[1737047474372,0.59917,3338.5,3338.4,0.59917]
[1737047474985,0.59915,3338.6,3338.5,0.59915]
[1737047475267,0.59923,3338.2,3338.1,0.59922]
[1737047475465,0.59921,3338.3,3338.2,0.5992]
[1737047476470,3.2078,3338.7,3338.0,3.53648444]
[1737047476867,0.59914,3338.6,3338.5,0.59914]
[1737047477167,3.2078,3338.7,3338.6,0.59914]
[1737047477563,3.80684,3339.2,3338.6,2.27648444]
[1737047477769,3.2078,3339.2,3339.1,0.59905]
[1737047478477,3.80683,3339.2,3339.1,0.59905]
[1737047478772,3.2078,3339.2,3339.1,0.59905]
[1737047479172,3.80683,3339.2,3339.1,0.59905]
[1737047479471,3.2078,3339.2,3338.8,43.6087]
[1737047479776,3.2078,3339.2,3338.6,2.27648444]
[1737047479777,0.59908,3339.0,3338.9,0.59908]
[1737047480573,3.2078,3339.2,3338.6,3.53548444]
[1737047480973,0.59908,3339.0,3338.9,0.59907]
[1737047481173,3.2078,3339.2,3338.8,0.59909]
[1737047481174,0.5991,3338.9,3338.8,0.59909]
[1737047482676,0.59912,3338.8,3338.7,0.59911]
[1737047483671,0.59912,3338.7,3338.6,1.85813]
[1737047483977,0.59912,3338.7,3338.6,0.59912]
[1737047483978,0.59914,3338.7,3338.6,0.59912]
[1737047484179,3.2078,3339.2,3338.9,0.59907]
[1737047484180,0.59908,3339.0,3338.9,0.59907]
[1737047484379,0.59908,3339.0,3338.6,2.27648444]
[1737047484380,3.2078,3339.2,3338.6,2.27648444]
[1737047484672,3.2078,3339.2,3339.1,0.59905]
[1737047484872,3.48064324,3339.6,3339.1,3.80685]
[1737047485072,3.48064324,3339.6,3339.5,2.87546444]
[1737047485276,3.48064324,3339.6,3339.5,6.08326444]
[1737047485466,4.66525425,3339.8,3339.5,11.13424823]
[1737047485778,5.8326527,3340.0,3339.9,0.59891]
[1737047485779,5.08465269,3340.0,3339.9,0.59891]
[1737047485973,5.08465269,3340.0,3339.9,7.99215823]
[1737047486372,5.08465269,3340.0,3339.9,48.79215823]
[1737047486571,0.59877,3340.7,3340.6,0.59878]
[1737047486878,0.59879,3340.6,3340.5,0.59879]
[1737047487071,1.5865,3341.0,3339.9,48.19324823]
[1737047487072,3.2078,3340.8,3339.9,48.19324823]
[1737047487272,0.59881,3340.5,3340.4,0.59881]
[1737047488075,3.2078,3340.8,3339.9,48.19324823]
[1737047488377,0.59881,3340.5,3340.4,0.59881]
[1737047488978,0.59882,3340.4,3340.3,0.59883]
[1737047489271,3.2078,3340.7,3339.9,44.98544823]
[1737047489476,0.59889,3340.0,3339.9,1.259]
[1737047491980,0.59889,3340.0,3339.1,4.70539]
[1737047491981,2.92644823,3340.0,3338.7,5.95459397]
[1737047492180,2.92644823,3340.0,3339.2,0.59902]
[1737047492181,0.59902,3339.3,3339.2,0.59902]
[1737047492582,3.2078,3339.8,3338.9,2.92644823]
[1737047492787,0.59897,3339.6,3339.5,0.59898]
[1737047493086,0.59897,3339.6,3339.0,4.70548]
[1737047493087,3.2078,3339.8,3339.2,2.92644823]
[1737047493386,0.59895,3339.7,3339.6,0.59894]
[1737047493679,0.59897,3339.6,3339.5,0.59897]
[1737047493885,0.59896,3339.7,3339.6,0.59895]
[1737047494383,3.2078,3339.8,3339.2,2.92644823]
[1737047494579,0.59897,3339.6,3339.5,0.59897]
[1737047495786,3.2078,3339.8,3339.2,2.92644823]
[1737047495986,4.8726,3340.6,3339.5,6.13424823]
[1737047496183,0.59888,3340.1,3340.0,0.59888]
[1737047496375,0.59888,3340.1,3340.0,41.39888]
[1737047496682,0.59888,3340.1,3340.0,0.59888]
[1737047496882,6.36959,3340.6,3339.8,2.92644823]
[1737047497286,0.59891,3339.9,3339.8,0.59891]
[1737047497683,6.3246,3340.2,3339.7,40.8]
[1737047497990,0.59896,3339.6,3339.5,3.80676]
[1737047498683,0.59894,3339.8,3339.5,3.2078]
[1737047498880,6.3246,3340.2,3339.8,0.59892]
[1737047498881,0.59892,3339.9,3339.8,0.59892]
[1737047499080,6.3246,3340.2,3339.5,6.13424823]
[1737047499282,6.3246,3340.2,3339.7,0.59893]
[1737047499490,0.59892,3339.8,3339.7,0.59893]
[1737047499786,0.59892,3339.8,3339.5,6.13424823]
[1737047499787,0.59892,3339.9,3339.8,0.59892]
[1737047499987,6.3246,3340.2,3339.5,6.13424823]
[1737047500194,6.3246,3340.2,3339.5,7.63168823]
[1737047500486,6.3246,3340.2,3339.5,6.13424823]
[1737047500687,6.3246,3340.2,3339.6,0.59894]
[1737047500688,0.59895,3339.7,3339.6,0.59894]
[1737047501082,0.59896,3339.6,3339.5,3.80677]
[1737047501485,0.59896,3339.6,3339.5,3.2078]
[1737047502687,0.59896,3339.6,3339.5,3.80678]
[1737047503289,0.59896,3339.6,3339.5,0.59898]
[1737047503988,1.6523,3339.8,3339.4,1.258]
[1737047504191,4.8601,3339.8,3339.0,40.8]
[1737047504385,0.59905,3339.1,3339.0,40.8]
[1737047504687,0.59905,3339.1,3338.9,3.2078]
[1737047504688,0.59907,3339.0,3338.9,3.2078]
[1737047504995,2.24137,3339.0,3338.9,3.80689]
[1737047506693,2.24137,3339.0,3338.9,0.59909]
[1737047509895,0.5991,3338.8,3338.7,2.87389672]
[1737047510797,1.6423,3339.0,3338.6,1.85713]
[1737047510798,0.59912,3338.7,3338.6,1.85713]
[1737047511004,2.27392,3338.7,3338.6,1.85713]
[1737047512401,1.6748,3338.7,3338.1,3.77285672]
[1737047512614,3.2078,3338.6,3337.9,1.259]
[1737047512816,3.2078,3338.6,3338.0,3.80704]
[1737047512817,0.59923,3338.1,3338.0,3.80704]
[1737047513217,0.59923,3338.1,3338.0,3.2078]
[1737047513511,3.2078,3338.2,3337.8,4.69659397]
[1737047513711,0.59927,3337.9,3337.8,5.29587397]
[1737047513919,0.59927,3337.9,3337.8,4.69659397]
[1737047514712,0.59928,3337.8,3337.7,0.59929]
[1737047515409,0.59928,3337.8,3337.4,3.53378672]
[1737047515410,3.2746,3338.0,3337.4,3.53378672]
[1737047515608,3.2746,3338.0,3337.9,0.59927]
[1737047515813,1.5998,3338.0,3337.9,0.59927]
[1737047516009,3.2078,3338.2,3338.1,0.59923]
[1737047516211,3.2078,3338.2,3338.1,2.87401672]
[1737047516622,4.47843294,3338.5,3338.4,0.59918]
[1737047516911,2.15267,3338.5,3338.4,41.39918]
[1737047517519,2.15267,3338.5,3338.4,40.8]
[1737047517720,0.59915,3338.6,3338.5,0.59914]
[1737047518220,2.19893,3338.7,3338.6,0.59914]
[1737047519520,1.5998,3338.7,3338.6,0.59914]
[1737047519722,2.19892,3338.7,3338.6,0.59914]
[1737047520022,1.5998,3338.7,3338.6,0.59914]
[1737047520213,2.19892,3338.7,3338.6,0.59914]
[1737047520415,0.59919,3338.3,3338.2,0.5992]
[1737047521014,3.2078,3338.5,3337.7,4.69659397]
[1737047521324,0.59927,3338.0,3337.9,0.59925]
[1737047521529,0.59925,3338.1,3338.0,0.59923]
[1737047521818,0.59918,3338.4,3338.3,0.59918]
[1737047522320,3.2078,3338.5,3338.4,0.59918]
[1737047524823,5.48888,3339.0,3338.9,0.59909]
[1737047525122,3.2078,3339.0,3338.9,2.87387672]
[1737047525323,3.80687,3339.0,3338.9,2.27478672]
[1737047525623,1.49772,3338.9,3338.4,2.27478672]
[1737047525825,0.59916,3338.5,3338.4,0.59915]
[1737047527122,3.80687,3339.0,3338.9,0.59909]
[1737047528024,0.5991,3338.9,3338.8,0.59909]
[1737047528426,3.80688,3339.0,3338.9,0.59909]
[1737047528629,3.2078,3339.0,3338.9,0.59909]
[1737047529218,2.17804,3339.2,3338.8,3.2078]
[1737047529526,2.32576294,3339.6,3339.5,0.59898]
[1737047529721,2.32576294,3339.6,3339.5,2.87376672]
[1737047529923,0.91357265,3339.6,3339.5,50.94855344]
[1737047530124,5.80651964,3340.1,3339.8,0.59892]
[1737047530325,5.80651964,3340.1,3339.8,6.08150672]
[1737047530525,4.65298027,3340.4,3340.3,0.59883]
[1737047531629,1.5921,3340.6,3340.5,0.5988]
[1737047532829,0.59881,3340.5,3340.4,0.59881]
[1737047533025,2.19089,3340.6,3340.5,0.5988]
[1737047534632,1.5921,3340.6,3340.5,0.5988]
[1737047534927,1.5921,3340.6,3340.2,3.2078]
[1737047535134,0.59886,3340.2,3340.1,0.59886]
[1737047536127,0.5989,3340.0,3339.9,0.59891]
[1737047536329,4.70481,3340.5,3339.3,1.258]
[1737047536330,3.2078,3340.1,3339.3,1.258]
[1737047536632,0.59894,3339.8,3339.7,0.59894]
[1737047537029,2.08464,3339.8,3339.7,0.59894]
[1737047538333,3.55084,3339.8,3339.7,0.59894]
[1737047539136,0.59895,3339.7,3339.6,0.59895]
[1737047539434,0.59895,3339.7,3339.3,1.258]
[1737047539435,3.55083,3339.8,3339.7,0.59894]
[1737047539632,2.9519,3339.8,3339.7,0.59894]
[1737047539836,1.4857,3339.8,3339.7,0.59894]
[1737047540231,6.0442,3340.5,3340.3,0.59882]
[1737047540232,0.59883,3340.4,3340.3,0.59882]
[1737047540432,1.4265,3340.4,3340.3,0.59882]
[1737047540739,2.02532,3340.4,3340.3,0.59882]
[1737047541831,1.4265,3340.4,3340.3,0.59882]
[1737047542224,1.4265,3340.4,3340.2,0.59884]
[1737047542428,0.59885,3340.3,3340.2,0.59884]
[1737047542832,1.4265,3340.4,3339.3,7.63167238]
[1737047543033,0.59893,3339.8,3339.7,0.59893]
[1737047543234,0.59892,3339.9,3339.8,0.59891]
[1737047543436,1.49709,3340.3,3339.4,1.257]
[1737047543631,0.59895,3339.7,3339.6,0.59894]
[1737047544134,3.2078,3340.1,3339.3,1.257]
[1737047544327,0.59894,3339.8,3339.7,0.59893]
[1737047544929,1.49723,3340.0,3339.3,1.257]
[1737047545137,2.01007,3339.7,3339.6,0.59895]
[1737047545332,5.80651964,3341.1,3339.6,2.92636238]
[1737047545536,5.38220235,3341.9,3340.5,2.92636238]
[1737047545725,3.48771124,3342.4,3341.8,5.85272476]
[1737047545932,11.5868983,3343.0,3342.9,0.59837]
[1737047546233,10.18627907,3343.0,3342.9,4.78173238]
[1737047546624,10.18627907,3343.0,3342.9,5.06419453]
[1737047547041,3.2078,3343.2,3342.9,8.36791012]
[1737047547236,3.2078,3343.2,3343.0,0.28246215]
[1737047547429,3.2078,3343.2,3342.9,4.69659397]
[1737047547631,3.2078,3343.2,3342.6,7.04489095]
[1737047547938,3.7668814,3342.7,3342.6,4.70919095]
[1737047548136,3.1684714,3342.7,3341.9,40.8]
[1737047548334,3.1684714,3342.7,3342.2,2.92636238]
[1737047549034,3.7668814,3342.7,3342.4,0.59845]
[1737047549241,0.59843,3342.6,3342.3,0.59847]
[1737047549442,3.1684714,3342.7,3342.2,2.92636238]
[1737047549741,3.2078,3342.3,3341.8,4.18236238]
[1737047549942,3.80629,3342.3,3341.8,4.78092238]
[1737047550240,0.59853,3342.0,3341.8,4.18236238]
[1737047550443,0.59852,3342.1,3341.8,4.18236238]
[1737047550831,0.59854,3342.0,3341.8,2.92636238]
[1737047551337,3.2078,3341.9,3341.4,2.92636238]
[1737047551547,0.59857,3341.8,3341.5,0.59862]
[1737047551842,3.2078,3341.9,3341.4,2.92636238]
[1737047552033,2.9766,3342.2,3340.8,40.8]
[1737047552034,3.2078,3341.5,3340.8,40.8]
[1737047552239,3.2078,3341.5,3340.9,0.28186931]
[1737047552540,3.2078,3341.5,3341.3,2.92636238]
[1737047552834,3.2078,3341.5,3341.4,0.59864]
[1737047553542,3.2078,3341.5,3341.3,3.52501238]
[1737047553748,0.59869,3341.2,3340.9,2.92636238]
[1737047553939,0.59869,3341.2,3340.9,3.52507238]
[1737047554239,3.2078,3341.1,3341.0,0.59871]
[1737047554539,3.2078,3341.1,3340.9,2.92636238]
[1737047554540,1.5568,3341.4,3341.3,0.59866]
[1737047554740,2.15544,3341.4,3341.3,2.92636238]
[1737047555136,0.59867,3341.3,3341.0,0.5987]
[1737047555334,0.59867,3341.3,3341.1,0.59869]
[1737047555535,1.5568,3341.4,3341.0,0.59871]
[1737047555839,1.5568,3341.4,3341.1,0.62796866]
[1737047556038,1.5568,3341.4,3341.3,2.92636238]
[1737047556245,1.5568,3341.4,3341.3,3.80722629]
[1737047556644,3.2078,3341.5,3341.3,3.20856629]
[1737047556841,3.2078,3341.5,3341.4,0.88084391]
[1737047557145,3.2078,3341.5,3341.4,0.28220391]
[1737047557342,0.59857,3341.8,3341.5,0.59862]
[1737047557544,0.59858,3341.7,3341.6,0.28235092]
[1737047557739,0.59858,3341.8,3341.6,0.28235092]